bitfinex/quotes_SOLUSD_20250831
["timestamp","ask_amount","ask_price","bid_price","bid_amount"]
[1756599892783,3.90859652,203.47,203.46,0.03]
[1756599894598,29.90859652,203.47,203.46,0.03]
[1756599895498,29.90859652,203.47,203.46,0.72]
[1756599895798,29.90859652,203.47,203.46,0.03]
[1756599895981,29.96859652,203.47,203.46,0.03]
[1756599903306,28.56945148,203.47,203.46,0.03]
[1756599906709,28.56945148,203.47,203.46,0.75]
[1756599907190,28.56945148,203.47,203.46,0.03]
[1756599910591,26.0,203.46,203.45,0.72]
[1756599910805,28.50945148,203.46,203.45,0.72]
[1756599913191,28.50945148,203.46,203.45,14.31559401]
[1756599914315,28.50945148,203.46,203.45,14.34559401]
[1756599915008,28.50945148,203.46,203.45,0.03]
[1756599915210,28.50945148,203.46,203.44,0.03]
[1756599915415,28.50945148,203.46,203.43,14.34559401]
[1756599915416,2.50945148,203.45,203.39,14.345594]
[1756599915602,2.50945148,203.45,203.4,0.72]
[1756599915603,0.43,203.45,203.4,0.72]
[1756599915802,0.43,203.44,203.4,0.72]
[1756599916298,0.69,203.43,203.38,38.3]
[1756599916503,26.0,203.4,203.38,38.3]
[1756599916705,12.5472574,203.39,203.38,51.89559401]
[1756599918200,12.5472574,203.39,203.36,0.72]
[1756599918407,2.50945148,203.37,203.36,52.61559401]
[1756599919492,2.50945148,203.37,203.35,38.3]
[1756599919701,10.03780592,203.39,203.37,13.59559401]
[1756599920318,10.03780592,203.39,203.38,0.72]
[1756599920813,12.5472574,203.39,203.38,0.72]
[1756599922220,12.5472574,203.39,203.38,14.31559401]
[1756599922894,12.5472574,203.39,203.38,13.59559401]
[1756599924110,12.5472574,203.39,203.36,0.72]
[1756599924310,10.03780592,203.39,203.37,14.31559401]
[1756599925019,10.03780592,203.39,203.36,13.59559401]
[1756599925203,10.03780592,203.39,203.37,0.72]
[1756599925403,3.92409193,203.39,203.38,13.59559401]
[1756599925609,7.84818386,203.39,203.38,13.59559401]
[1756599926125,7.84818386,203.39,203.38,14.31559401]
[1756599926419,4.61409193,203.39,203.34,0.72]
[1756599926623,3.92409193,203.35,203.34,13.59559401]
[1756599926800,3.92409193,203.35,203.34,51.89559401]
[1756599927300,3.92409193,203.35,203.34,52.61559401]
[1756599930899,3.92409193,203.35,203.34,51.89559401]
[1756599931100,3.92409193,203.35,203.34,52.61559401]
[1756599931307,3.92409193,203.35,203.34,51.89559401]
[1756599932521,3.92409193,203.35,203.34,38.33]
[1756599938007,3.92409193,203.35,203.31,0.03]
[1756599938224,3.92409193,203.32,203.17,3.92409193]
[1756599938430,3.92409193,203.32,203.26,0.72]
[1756599938431,3.92409193,203.27,203.26,0.72]
[1756599938733,3.92409193,203.27,203.26,14.31559401]
[1756599939331,3.92409193,203.27,203.25,38.88]
[1756599939332,29.92409193,203.27,203.25,38.88]
[1756599939535,3.92409193,203.26,203.25,38.88]
[1756599939712,3.92409193,203.26,203.25,39.6]
[1756599941230,26.0,203.24,203.23,0.72]
[1756599941427,3.92409193,203.24,203.23,38.86]
[1756599941735,26.0,203.3,203.23,38.86]
[1756599941913,3.92409193,203.25,203.24,14.31559401]
[1756599942109,3.92409193,203.25,203.24,38.88]
[1756599942632,3.92409193,203.25,203.24,38.9]
[1756599943014,3.92409193,203.25,203.24,37.9]
[1756599943216,0.4,203.33,203.25,13.59559401]
[1756599943519,0.4,203.33,203.24,38.62]
[1756599943520,3.92409193,203.29,203.27,13.59559401]
[1756599943728,3.92409193,203.29,203.28,53.29559401]
[1756599944112,3.92409193,203.29,203.28,58.21491711]
[1756599944433,26.0,203.32,203.28,58.21491711]
[1756599944434,3.92409193,203.32,203.28,58.21491711]
[1756599944622,3.92409193,203.34,203.29,14.31559401]
[1756599944829,3.92409193,203.34,203.3,0.72]
[1756599945026,3.92409193,203.34,203.32,13.59559401]
[1756599945226,3.92409193,203.34,203.33,14.31559401]
[1756599947436,29.92409193,203.34,203.33,39.0]
[1756599947814,29.92409193,203.34,203.3,14.31559401]
[1756599947815,29.92409193,203.34,203.32,38.98]
[1756599948042,3.92409193,203.33,203.32,13.59559401]
[1756599948219,26.0,203.31,203.29,13.59559401]
[1756599948421,3.92409193,203.3,203.29,52.57559401]
[1756599948615,3.92409193,203.3,203.29,13.59559401]
[1756599948822,3.92409193,203.3,203.25,4.92004357]
[1756599948823,3.92409193,203.3,203.25,13.59559401]
[1756599949023,0.4,203.32,203.28,38.98]
[1756599949238,3.92409193,203.29,203.28,38.98]
[1756599949432,29.92409193,203.29,203.25,0.72]
[1756599949632,29.92409193,203.29,203.24,13.59559401]
[1756599949633,26.0,203.29,203.27,39.0]
[1756599949822,26.0,203.31,203.27,39.0]
[1756599950359,26.0,203.29,203.24,13.59559401]
[1756599950642,3.92409193,203.28,203.25,39.72]
[1756599950825,26.0,203.32,203.25,52.59559401]
[1756599951025,26.0,203.32,203.26,13.59559401]
[1756599951439,26.0,203.32,203.28,13.59559401]
[1756599951633,26.0,203.33,203.29,39.0]
[1756599951830,3.92409193,203.3,203.29,53.31559401]
[1756599952649,3.92409193,203.3,203.29,39.0]
[1756599953237,3.92409193,203.3,203.29,39.72]
[1756599953925,3.92409193,203.3,203.29,39.22]
[1756599954352,3.92409193,203.3,203.29,38.5]
[1756599955052,33.84818386,203.3,203.26,14.31559401]
[1756599955263,29.92409193,203.28,203.27,52.55559401]
[1756599955949,3.92409193,203.28,203.27,53.27559401]
[1756599958928,3.92409193,203.28,203.27,39.68]
[1756599960346,3.92409193,203.28,203.27,38.9]
[1756599960555,3.92409193,203.28,203.27,39.62]
[1756599961541,33.84818386,203.28,203.24,13.62559401]
[1756599961740,26.0,203.26,203.25,38.88]
[1756599962053,29.92409193,203.26,203.25,38.88]
[1756599962456,3.92409193,203.26,203.25,38.88]
[1756599963132,3.92409193,203.26,203.25,39.58]
[1756599964358,26.0,203.27,203.25,39.58]
[1756599964578,3.92409193,203.26,203.25,39.58]
[1756599966254,29.92409193,203.26,203.25,39.58]
[1756599966565,14.793264,203.31,203.26,13.59559401]
[1756599966862,14.793264,203.31,203.27,39.56]
[1756599967039,14.793264,203.31,203.28,0.7]
[1756599967239,0.06,203.34,203.29,38.84]
[1756599967448,26.0,203.31,203.29,38.84]
[1756599968057,3.92409193,203.3,203.29,38.84]
[1756599969461,29.92409193,203.3,203.29,38.84]
[1756599970163,14.851076,203.34,203.29,38.84]
[1756599970459,14.851076,203.34,203.31,13.59559401]
[1756599970460,0.06,203.34,203.31,13.59559401]
[1756599970645,0.06,203.34,203.32,39.52]
[1756599970963,0.06,203.33,203.32,53.11559401]
[1756599971740,3.98409193,203.33,203.32,53.11559401]
[1756599973159,3.98409193,203.33,203.32,58.03394931]
[1756599973662,0.06,203.33,203.32,58.03394931]
[1756599973845,3.98409193,203.33,203.32,58.03394931]
[1756599974869,0.06,203.33,203.32,58.03394931]
[1756599975545,0.06,203.33,203.32,61.95804124]
[1756599976655,0.06,203.33,203.32,58.03394931]
[1756599976859,0.06,203.33,203.32,61.95804124]
[1756599980646,0.06,203.33,203.32,63.92921224]
[1756599980867,0.06,203.33,203.32,60.00512031]
[1756599981071,0.06,203.33,203.32,63.92921224]
[1756599982365,0.06,203.34,203.33,13.59559401]
[1756599982555,0.06,203.34,203.33,14.29559401]
[1756599982952,0.06,203.34,203.33,18.27968501]
[1756599983150,0.06,203.35,203.33,18.27968501]
[1756599983374,0.06,203.35,203.34,53.03559401]
[1756599983782,0.06,203.35,203.34,56.95968501]
[1756599984077,0.06,203.35,203.34,61.87755655]
[1756599984876,0.06,203.35,203.34,23.13755655]
[1756599985086,0.06,203.35,203.34,61.85755655]
[1756599986587,0.06,203.37,203.35,13.59559401]
[1756599986892,0.06,203.37,203.36,52.29559401]
[1756599987185,0.06,203.37,203.36,52.99559401]
[1756599987386,0.06,203.37,203.36,29.07574001]
[1756599987684,0.06,203.37,203.36,67.77574001]
[1756599988573,0.06,203.37,203.36,33.99312789]
[1756599988775,0.06,203.37,203.36,57.89298189]
[1756599988978,0.06,203.37,203.36,72.67312689]
[1756599992870,0.06,203.37,203.36,33.99312689]
[1756599993071,0.06,203.37,203.36,72.63312689]
[1756599993271,0.06,203.37,203.36,72.61312689]
[1756599994187,0.06,203.37,203.36,33.99312689]
[1756599994486,0.06,203.37,203.36,72.61312689]
[1756599996893,0.06,203.37,203.36,33.99312689]
[1756599997184,3.98409193,203.37,203.36,57.09298189]
[1756599997393,3.98409193,203.37,203.36,18.51298189]
[1756599997578,3.98409193,203.37,203.36,57.09298189]
[1756599998467,3.98409193,203.37,203.36,13.59559401]
[1756599998875,3.98409193,203.37,203.36,52.19559401]
[1756600000488,3.98409193,203.37,203.36,57.11298189]
[1756600003073,3.98409193,203.37,203.36,13.59559401]
[1756600003074,4.38409193,203.37,203.36,13.59559401]
[1756600003390,3.98409193,203.37,203.36,52.15559401]
[1756600003577,3.98409193,203.37,203.36,57.07298189]
[1756600005593,0.06,203.37,203.36,57.79298189]
[1756600005979,3.98409193,203.37,203.36,57.79298189]
[1756600020613,0.06,203.4,203.37,13.59559401]
[1756600020808,0.06,203.4,203.39,13.59559401]
[1756600021198,0.06,203.4,203.39,14.31559401]
[1756600021687,0.06,203.4,203.39,18.23968601]
[1756600023021,0.06,203.4,203.39,61.53634857]
[1756600023602,0.06,203.42,203.41,39.59559401]
[1756600023801,1e-08,203.42,203.41,77.97559401]
[1756600024001,1e-08,203.42,203.41,78.69559401]
[1756600024203,1e-08,203.42,203.41,86.54377794]
[1756600024901,1e-08,203.42,203.41,91.45995708]
[1756600025302,0.06,203.47,203.46,13.59559401]
[1756600025511,0.06,203.47,203.46,52.73559401]
[1756600025892,0.06,203.47,203.46,56.71968601]
[1756600026219,3.98409193,203.47,203.46,55.99968601]
[1756600026520,3.98409193,203.47,203.46,56.71968601]
[1756600026521,0.06,203.47,203.46,56.71968601]
[1756600026824,0.06,203.47,203.46,61.63465701]
[1756600027524,0.06,203.49,203.46,61.63465701]
[1756600027696,0.06,203.49,203.48,13.59559401]
[1756600028008,0.06,203.49,203.48,52.01559401]
[1756600028193,3.98409193,203.49,203.48,52.73559401]
[1756600029019,3.98409193,203.49,203.48,56.93008192]
[1756600030838,3.98409193,203.49,203.48,18.51008192]
[1756600031113,4.38409193,203.49,203.48,13.59559401]
[1756600031325,4.38409193,203.49,203.48,51.99559401]
[1756600031512,3.98409193,203.49,203.48,51.99559401]
[1756600032317,3.98409193,203.49,203.48,56.91008192]
[1756600035310,0.06,203.49,203.48,57.63008192]
[1756600035701,0.06,203.49,203.48,59.59960392]
[1756600036007,0.06,203.49,203.48,63.52369585]
[1756600036202,0.06,203.49,203.48,59.59960392]
[1756600038501,0.06,203.5,203.49,13.59559401]
[1756600038701,1e-08,203.5,203.49,14.31559401]
[1756600038930,1e-08,203.5,203.49,23.15393234]
[1756600039225,1e-08,203.5,203.49,21.19897441]
[1756600044105,1e-08,203.5,203.49,25.12306634]
[1756600044727,0.06,203.53,203.52,39.59559401]
[1756600045025,0.06,203.53,203.52,77.95559401]
[1756600045226,0.06,203.53,203.52,78.67559401]
[1756600045525,0.06,203.53,203.52,80.64463101]
[1756600045728,1e-08,203.54,203.52,84.56872294]
[1756600045897,1e-08,203.54,203.53,18.23968594]
[1756600046103,1e-08,203.54,203.53,23.15296653]
[1756600046623,1e-08,203.54,203.53,19.2288746]
[1756600046813,1e-08,203.54,203.53,21.1977176]
[1756600048325,1e-08,203.54,203.53,59.5577176]
[1756600052220,1e-08,203.54,203.53,63.48180953]
[1756600052618,1e-08,203.54,203.53,59.5577176]
[1756600053030,1e-08,203.54,203.53,63.48180953]
[1756600054036,1e-08,203.55,203.54,39.59559401]
[1756600054330,0.06,203.59,203.57,13.59559401]
[1756600054536,0.06,203.59,203.58,51.93559401]
[1756600054836,0.06,203.59,203.58,52.62559401]
[1756600055516,0.06,203.59,203.58,57.53766788]
[1756600055726,0.06,203.59,203.58,61.52175988]
[1756600056228,0.06,203.62,203.59,13.59559401]
[1756600056437,0.06,203.62,203.61,13.59559401]
[1756600056626,0.06,203.62,203.61,51.93559401]
[1756600056831,0.06,203.62,203.61,55.85968501]
[1756600057333,0.06,203.62,203.61,60.77103514]
[1756600058835,3.98409193,203.62,203.61,60.77103514]
[1756600059224,3.98409193,203.62,203.61,22.43103514]
[1756600059406,3.98409193,203.62,203.61,60.77103514]
[1756600060434,3.98409193,203.62,203.61,61.46103514]
[1756600060627,3.98409193,203.62,203.61,60.77103514]
[1756600061235,0.06,203.62,203.61,61.46103514]
[1756600061446,0.06,203.65,203.64,13.59559401]
[1756600061742,3.98409193,203.65,203.64,51.93559401]
[1756600062038,3.98409193,203.65,203.64,53.90366201]
[1756600062612,0.06,203.65,203.64,54.59366201]
[1756600063528,0.06,203.65,203.64,59.5042886]
[1756600065342,0.06,203.65,203.64,58.8142886]
[1756600065636,0.06,203.65,203.64,59.5042886]
[1756600066240,0.06,203.65,203.64,58.8142886]
[1756600067140,0.06,203.65,203.64,59.5042886]
[1756600067726,3.98409193,203.65,203.64,20.4742886]
[1756600068043,3.98409193,203.65,203.64,58.8142886]
[1756600069742,3.98409193,203.65,203.64,58.7942886]
[1756600070741,0.06,203.65,203.64,58.7942886]
[1756600071042,1e-08,203.66,203.64,63.40838053]
[1756600071240,1e-08,203.66,203.65,14.28559401]
[1756600071732,1e-08,203.66,203.65,16.25327501]
[1756600073446,1e-08,203.66,203.65,21.16366047]
[1756600077455,0.06,203.68,203.67,39.59559401]
[1756600077623,0.06,203.68,203.67,77.91559401]
[1756600077948,0.06,203.68,203.67,78.60559401]
[1756600078146,0.06,203.68,203.67,82.52968601]
[1756600078450,1e-08,203.68,203.67,60.45377794]
[1756600078959,1e-08,203.69,203.68,39.59559401]
[1756600079153,1e-08,203.69,203.68,78.60559401]
[1756600079454,1e-08,203.69,203.68,83.51525622]
[1756600080050,3.92409193,203.74,203.71,39.59559401]
[1756600080234,3.92409193,203.74,203.73,13.59559401]
[1756600080758,3.92409193,203.74,203.73,28.34957201]
[1756600081552,3.92409193,203.74,203.73,33.25802928]
[1756600083255,4.32409193,203.74,203.73,28.34957201]
[1756600083457,4.32409193,203.74,203.73,38.3]
[1756600083630,4.32409193,203.74,203.73,43.20845727]
[1756600084680,3.92409193,203.74,203.73,43.20845727]
[1756600085452,3.92409193,203.74,203.73,47.13254927]
[1756600085633,3.92409193,203.74,203.73,43.20845727]
[1756600086560,4.32409193,203.74,203.73,43.20845727]
[1756600087048,3.92409193,203.74,203.73,43.20845727]
[1756600087461,0.2,203.75,203.74,18.50381036]
[1756600087660,0.2,203.75,203.74,19.20381036]
[1756600088474,0.2,203.75,203.74,23.12790236]
[1756600090950,3.92409193,203.79,203.77,13.59559401]
[1756600091264,3.92409193,203.79,203.78,51.89559401]
[1756600091940,3.92409193,203.79,203.78,60.72693892]
[1756600092542,0.4,203.84,203.78,61.42693892]
[1756600092745,3.92409193,203.79,203.78,60.72693892]
[1756600095258,3.92409193,203.79,203.78,61.42693892]
[1756600095463,3.92409193,203.79,203.78,60.72693892]
[1756600095653,3.92409193,203.79,203.78,61.42693892]
[1756600096256,3.98409193,203.79,203.78,61.42693892]
[1756600097557,0.06,203.79,203.78,61.42693892]
[1756600097767,3.98409193,203.79,203.78,61.42693892]
[1756600098074,0.06,203.79,203.78,61.42693892]
[1756600098952,0.06,203.82,203.81,39.59559401]
[1756600099281,3.98409193,203.82,203.81,77.87559401]
[1756600099463,3.98409193,203.82,203.81,78.57559401]
[1756600099658,3.98409193,203.82,203.81,82.55968601]
[1756600099858,0.06,203.82,203.81,82.55968601]
[1756600100170,3.98409193,203.82,203.81,87.4662166]
[1756600101157,3.92409193,203.82,203.81,87.4662166]
[1756600101968,0.06,203.84,203.82,13.59559401]
[1756600102185,0.06,203.84,203.83,82.78164316]
[1756600102474,3.98409193,203.84,203.83,88.40389503]
[1756600102881,3.98409193,203.84,203.83,92.38798703]
[1756600103255,0.2,203.86,203.85,13.59559401]
[1756600103476,3.92409193,203.94,203.86,13.59559401]
[1756600103477,0.4,203.92,203.86,13.59559401]
[1756600103681,0.4,203.92,203.88,13.59559401]
[1756600103853,0.4,203.92,203.89,38.28]
[1756600104052,4.32409193,203.94,203.9,13.59559401]
[1756600104276,3.92409193,203.94,203.93,18.49923741]
[1756600104489,3.92409193,203.94,203.93,56.77923741]
[1756600104853,8.24818386,203.94,203.93,56.77923741]
[1756600105273,8.24818386,203.94,203.9,14.742377]
[1756600105473,3.92409193,203.91,203.84,0.7]
[1756600105694,3.92409193,203.85,203.84,0.7]
[1756600105876,3.92409193,203.85,203.84,26.7]
[1756600106078,0.4,203.91,203.84,26.7]
[1756600106391,3.92409193,203.85,203.84,26.7]
[1756600106689,3.92409193,203.85,203.84,64.98]
[1756600106888,3.92409193,203.85,203.84,68.904092]
[1756600107269,3.92409193,203.85,203.84,82.49968601]
[1756600107472,3.92409193,203.85,203.84,99.67001567]
[1756600107683,0.4,203.93,203.85,13.59559401]
[1756600107872,0.4,203.93,203.87,13.59559401]
[1756600108085,3.92409193,203.94,203.89,13.59559401]
[1756600108273,0.4,203.92,203.9,38.26]
[1756600108668,3.92409193,203.91,203.9,38.26]
[1756600108868,3.92409193,203.91,203.9,56.75995889]
[1756600110589,29.924092,204.01,203.91,13.59559401]
[1756600110792,0.4,203.98,203.92,38.26]
[1756600111096,0.4,203.97,203.92,38.26]
[1756600111282,0.4,203.96,203.92,38.26]
[1756600111888,3.92409193,203.93,203.92,52.56559401]
[1756600112569,3.92409193,203.93,203.92,56.75947788]
[1756600114173,0.4,203.98,203.92,57.46947788]
[1756600114375,0.4,203.99,203.93,14.30559401]
[1756600114568,0.4,203.99,203.94,43.16340296]
[1756600114789,0.4,203.99,203.94,43.87340296]
[1756600115190,0.4,204.01,203.95,0.71]
[1756600115377,0.4,204.01,203.96,38.26]
[1756600115567,3.92409193,203.97,203.96,52.56559401]
[1756600115983,3.42409193,203.97,203.96,14.30559401]
[1756600116187,3.92409193,203.97,203.96,52.56559401]
[1756600116491,3.92409193,203.97,203.96,19.20851615]
[1756600116689,3.92409193,204.05,203.96,69.7258215]
[1756600116994,3.92409193,203.97,203.96,69.0158215]
[1756600117198,0.4,204.04,203.97,13.59559401]
[1756600117495,0.4,204.04,203.99,13.59559401]
[1756600117702,0.4,204.04,204.0,38.26]
[1756600118578,3.92409193,204.01,204.0,56.75755479]
[1756600119284,3.92409193,204.01,204.0,57.46755479]
[1756600119686,3.92409193,204.01,204.0,56.75755479]
[1756600119983,4.32409193,204.05,204.01,13.59559401]
[1756600120302,3.92409193,204.05,204.02,38.95]
[1756600120497,3.92409193,204.05,204.03,13.59559401]
[1756600120797,4.89811912,204.16,204.05,26.0]
[1756600120982,0.4,204.1,204.06,38.24]
[1756600121181,14.733689,204.15,204.07,14.30559401]
[1756600121408,4.32409193,204.16,204.09,13.59559401]
[1756600121586,3.92409193,204.1,204.09,18.49539311]
[1756600121775,4.32409193,204.16,204.09,57.46539311]
[1756600121977,3.92409193,204.1,204.09,56.75539311]
[1756600122186,4.32409193,204.16,204.09,56.75539311]
[1756600122382,3.92409193,204.1,204.09,13.59559401]
[1756600122591,3.92409193,204.1,204.09,52.56559401]
[1756600123597,3.92409193,204.1,204.09,23.12948511]
[1756600123906,3.92409193,204.1,204.09,61.38948511]
[1756600124074,0.1,204.19,204.13,13.59559401]
[1756600124278,0.1,204.19,204.15,13.59559401]
[1756600124488,0.1,204.19,204.16,38.34]
[1756600124875,0.1,204.19,204.13,0.71]
[1756600125092,0.1,204.19,204.14,38.34]
[1756600125290,0.5,204.19,204.14,39.05]
[1756600125693,3.92409193,204.15,204.14,52.64559401]
[1756600125892,3.92409193,204.15,204.12,0.71]
[1756600126195,3.92409193,204.13,204.09,13.59559401]
[1756600126398,4.32409193,204.16,204.1,39.05]
[1756600126782,4.32409193,204.16,204.11,13.59559401]
[1756600127081,4.32409193,204.16,204.11,14.30559401]
[1756600127298,3.92409193,204.16,204.11,14.30559401]
[1756600127603,3.92409193,204.16,204.12,0.71]
[1756600127914,3.92409193,204.16,204.1,0.71]
[1756600128119,0.4,204.15,204.11,38.34]
[1756600128398,0.4,204.14,204.07,4.997426]
[1756600128599,0.4,204.14,204.08,38.34]
[1756600128800,3.92409193,204.09,204.08,38.34]
[1756600129381,3.92409193,204.09,204.04,26.0]
[1756600129604,7.84818386,204.05,204.03,44.872233]
[1756600129905,3.92409193,204.04,204.03,48.93559401]
[1756600130103,3.92409193,204.04,204.03,87.29559401]
[1756600130310,3.92409193,204.04,204.03,92.19683402]
[1756600130510,3.92409193,204.04,204.03,88.00559401]
[1756600130685,3.92409193,204.04,204.03,49.64559401]
[1756600131086,3.92409193,204.04,204.03,88.00559401]
[1756600131909,3.92409193,204.04,204.03,52.66559401]
[1756600132111,3.92409193,204.04,204.01,13.59559401]
[1756600132297,3.92409193,204.05,204.01,13.59559401]
[1756600132298,3.92409193,204.02,204.01,13.59559401]
[1756600132499,3.92409193,204.02,204.01,51.93559401]
[1756600132696,3.92409193,204.02,204.01,38.34]
[1756600133205,3.92409193,204.02,204.0,0.71]
[1756600133411,3.92409193,204.01,203.98,14.30559401]
[1756600133616,3.92409193,203.99,203.98,13.59559401]
[1756600133788,3.92409193,203.99,203.98,51.93559401]
[1756600133999,3.92409193,203.99,203.97,0.03]
[1756600134191,0.4,204.03,203.98,13.59559401]
[1756600134392,3.92409193,203.99,203.97,0.74]
[1756600134612,3.92409193,203.98,203.97,14.33559401]
[1756600134798,3.92409193,203.98,203.97,52.67559401]
[1756600135914,0.4,204.02,203.97,52.67559401]
[1756600136114,3.92409193,203.98,203.97,52.67559401]
[1756600136501,3.92409193,203.98,203.97,0.74]
[1756600136809,3.92409193,203.98,203.92,0.03]
[1756600137012,3.92409193,203.95,203.94,13.62559401]
[1756600137226,3.92409193,203.95,203.94,51.94559401]
[1756600137420,3.92409193,203.95,203.94,52.65559401]
[1756600137807,3.92409193,203.95,203.94,57.55887597]
[1756600138916,29.92409193,204.05,203.94,57.55887597]
[1756600139121,3.92409193,204.05,203.98,13.59559401]
[1756600139412,3.92409193,204.05,203.99,39.03]
[1756600140418,3.92409193,204.0,203.99,57.52779509]
[1756600141620,4.32409193,204.0,203.94,0.03]
[1756600141826,7.84818386,203.95,203.94,0.03]
[1756600142122,7.84818386,203.95,203.94,38.43]
[1756600142698,3.92409193,203.95,203.94,57.62899697]
[1756600142915,3.92409193,203.96,203.95,13.59559401]
[1756600143108,3.92409193,203.97,203.96,39.59559401]
[1756600143421,3.92409193,203.97,203.96,40.29559401]
[1756600143921,3.92409193,203.97,203.94,5.63340296]
[1756600144109,0.4,204.0,203.96,38.44]
[1756600144309,9.90132111,204.03,203.96,38.44]
[1756600144310,0.4,203.99,203.96,38.44]
[1756600145109,0.4,204.01,203.96,38.44]
[1756600145309,3.92409193,203.97,203.96,38.44]
[1756600145910,3.92409193,203.97,203.96,38.46]
[1756600146105,7.84818386,203.97,203.96,38.44]
[1756600146315,7.84818386,203.97,203.95,38.44]
[1756600146620,3.92409193,203.96,203.95,38.44]
[1756600147323,3.92409193,203.96,203.95,39.14]
[1756600147622,3.92409193,203.96,203.95,43.34316253]
[1756600148132,3.92409193,203.96,203.95,44.04316253]
[1756600148632,3.92409193,203.96,203.95,57.63875654]
[1756600150925,3.92409193,203.96,203.95,57.66875654]
[1756600151130,0.06,204.02,203.97,4.90268176]
[1756600151334,0.06,204.02,203.98,38.44]
[1756600152430,3.92409193,203.99,203.98,38.44]
[1756600153235,0.06,204.02,203.99,13.59559401]
[1756600153436,0.06,204.02,204.0,52.01559401]
[1756600153437,3.92409193,204.01,204.0,52.01559401]
[1756600153645,3.92409193,204.01,204.0,52.71559401]
[1756600154512,3.92409193,204.01,204.0,57.61755479]
[1756600154938,0.06,204.02,204.01,13.59559401]
[1756600155125,0.06,204.02,204.01,14.29559401]
[1756600156636,5.0,204.03,204.01,19.19731451]
[1756600156837,5.0,204.03,204.02,52.71559401]
[1756600157018,0.4,204.13,204.02,52.71559401]
[1756600157237,3.92409193,204.07,204.04,13.59559401]
[1756600157532,3.92409193,204.09,204.06,13.59559401]
[1756600157729,3.92409193,204.09,204.07,39.1]
[1756600157938,3.92409193,204.09,204.08,0.7]
[1756600158527,0.46,204.15,204.08,0.7]
[1756600158839,3.92409193,204.09,204.08,5.6000392]
[1756600159019,3.92409193,204.09,204.08,44.0000392]
[1756600159219,3.92409193,204.09,204.08,43.3000392]
[1756600159720,3.92409193,204.09,204.08,5.6000392]
[1756600159936,0.4,204.13,204.08,43.3000392]
[1756600160121,3.92409193,204.09,204.08,56.89563321]
[1756600160943,3.92409193,204.09,204.08,57.59563321]
[1756600161144,3.92409193,204.1,204.09,13.59559401]
[1756600161337,3.92409193,204.1,204.09,14.29559401]
[1756600161721,0.06,204.15,204.09,14.29559401]
[1756600161916,0.06,204.15,204.1,38.38]
[1756600162145,3.92409193,204.11,204.1,56.87515304]
[1756600162358,3.92409193,204.11,204.1,57.57515304]
[1756600163328,0.06,204.15,204.1,57.57515304]
[1756600163514,3.92409193,204.11,204.1,56.87515304]
[1756600163919,0.06,204.15,204.1,56.87515304]
[1756600164135,3.92409193,204.11,204.1,57.57515304]
[1756600164845,4.32409193,204.11,204.06,4.90051945]
[1756600165022,0.4,204.11,204.07,50.47559401]
[1756600165223,3.92409193,204.08,204.07,50.47559401]
[1756600166845,3.92409193,204.08,204.07,41.78027931]
[1756600168066,4.32409193,204.08,204.07,38.38]
[1756600168923,4.32409193,204.08,204.04,4.90079033]
[1756600169128,0.4,204.08,204.05,38.38]
[1756600169336,0.4,204.1,204.05,38.38]
[1756600169536,0.4,204.09,204.05,38.38]
[1756600169762,0.4,204.09,204.04,4.90079033]
[1756600169924,0.4,204.09,204.06,38.38]
[1756600170340,3.92409193,204.07,204.03,5.60102201]
[1756600170543,3.92409193,204.04,204.02,4.90144748]
[1756600170749,3.92409193,204.03,204.02,18.49704149]
[1756600170924,3.92409193,204.03,204.02,56.87704149]
[1756600171662,3.92409193,204.03,204.02,57.54704149]
[1756600173329,0.06,204.08,204.03,13.59559401]
[1756600173533,0.06,204.08,204.05,13.59559401]
[1756600173748,0.06,204.08,204.06,38.34]
[1756600173963,0.06,204.08,204.06,39.01]
[1756600174947,0.06,204.08,204.07,19.16587332]
[1756600175160,3.98409193,204.08,204.07,19.16587332]
[1756600176544,0.06,204.08,204.07,19.16587332]
[1756600176853,3.98409193,204.08,204.07,19.16587332]
[1756600177151,0.06,204.08,204.07,57.52587332]
[1756600177654,3.92409193,204.11,204.08,13.59559401]